{"text_format":"1","workbook":"xlsx","n_sheets":2,"sheets":["Analyse","Beispieltexte"],"not_rendered":{"charts":0,"images":2,"macros":1,"external_links":0,"defined_names":0,"comments":0,"pivot_tables":0},"unopened":[],"bounds":{"document_bytes":16777216,"sheet_cells":100000,"rows_first":2000,"rows_last":500,"rows_between":2000,"halvings":0,"cell_chars":16384,"cell_head_chars":4096},"cells_cut":0,"cells_raw":0,"read":"whole","date_system":"1900"}

{"sheet":"Analyse","index":0,"n_rows":30,"n_cols":4,"rows_kept":30,"cut":false,"hidden":false,"merged":[[0,0,0,2]]}
["Eingabe des Textes hier:\n(Unwichtig, ob der Text komplett zu sehen ist)\n\nTIPP: Möglichst langen Text verwenden, zB Kopie eines Artikels aus einer Zeitung",null,null,"11.05.2016 Bonn. Das Umweltamt hat dem Stadtrat die jüngste CO2-Bilanz vorgelegt. Demnach verfehlt die Stadt Bonn ihr selbst gestecktes Klimaschutz-Ziel deutlich. Das liegt vor allem am Verkehr.\n\nDie Stadt Bonn verfehlt ihr selbst gestecktes Klimaschutz-Ziel derzeit deutlich. Das geht aus der jüngsten CO2-Bilanz hervor, die das Umweltamt dem Stadtrat vorgelegt hat. Im Betrachtungszeitraum von 1990 bis 2012 sank der Ausstoß an Treibhausgasen pro Einwohner demnach von 9,3 auf 7,6 Tonnen jährlich.\n\nBesonders die privaten Haushalte sowie Industrie und Gewerbe haben zu dieser Verringerung beigetragen. Sie verursachen zusammen rund ein Viertel weniger Treibhausgase als zu Beginn der 1990er Jahre. Beim Verkehr mit immer mehr Dieselfahrzeugen haben die Emissionen hingegen um 18 Prozent zugenommen.\n\nAls Mitglied im Klimabündnis will Bonn seinen Treibhausgasausstoß von 1990 bis 2030 um die Hälfte verringern. Wie die Untersuchung zeigt, ist die Stadt von diesem Ziel derzeit weit entfernt. Bei einer gleichbleibenden Minderungsrate hätte der Wert dazu 2012 bereits bei deutlich unter sieben Tonnen je Einwohner liegen müssen. In absoluten Zahlen fällt Bonns Beitrag zum Klimaschutz sogar noch deutlich geringer aus, weil die Gesamtemissionen 2012 auf rund 17 000 zusätzliche Einwohner verglichen mit 1990 verteilt wurden. Real sind sie von 2,8 Millionen Tonnen 1990 auf 2,4 Millionen Tonnen 2012 gesunken, also um 15 Prozent.\n\nEntsprechend verhalten bewertet Michael Müller von der „EnergieAgentur“ NRW die Bonner Ergebnisse. Der Experte für kommunalen Klimaschutz spricht von einem „moderaten Rückgang der Emissionen“. Dies sei „durchaus ein Erfolg für die kommunale Klimaschutzpolitik“. Wie überall im Land stünden Einspareffekten durch Effizienzsteigerung im Bereich der Industrie und leichten Einsparungen in den Privathaushalten fast konstante Emissionen bei Gewerbe, Handel und Dienstleistungen und steigende Werte beim Verkehr gegenüber.\n\nDie CO2-Bilanz wurde mit dem Internet-System „ecoRegion“ erstellt und um die Jahre 2011 und 2012 ergänzt. Es dauere mehrere Jahre, bis die notwendigen Daten zur Verfügung stünden, erklärt das Umweltamt die verzögerte Auswertung. Die Daten bilden die tatsächlichen Energieverbräuche und Kohlendioxid-Emissionen im Bonner Stadtgebiet ab und sind nicht um Witterungseinflüsse wie kalte Winter korrigiert. Auch die Treibhausgase, die bei der Her- und Bereitstellung von Energie anfallen, fließen in die Gesamtrechnung ein.\n\nPositiv fällt auf, dass fossile Energieträger in der Stadt heute eine deutlich geringere Rolle spielen als zur deutschen Wiedervereinigung. Der Umstieg der Stadtwerke von Braunkohle auf Erdgas und Mülldampf sowie der Einsatz von Kraft-Wärme-Kopplung hätte dazu geführt, dass die Emissionen beim Strom um 18 Prozent gesenkt werden konnten, bilanziert das Umweltamt. Und das, obgleich heute mehr Strom verbraucht wird als 1990. Zugekaufter Strom stammte 2012 außerdem zu fast 55 Prozent aus erneuerbaren Energiequellen. Bei der Heizwärme, die den weitaus größeren Anteil am Verbrauch hat, steckt die Energiewende noch in den Kinderschuhen. Immerhin setzen die Bonner nur noch selten auf Heizöl und Kohle. Deren Anteil sank um die Hälfte. Vor allem der Ausbau des Fernwärmenetzes ist dafür verantwortlich. Aber auch Erdgas ist auf dem Vormarsch. Sein Anteil stieg seit 1990 um fünf Prozent. Erneuerbare Energiequellen, etwa Solarkollektoren, haben bei der Wärmeproduktion dagegen nur einen verschwindend geringen Anteil.\n\nEinen positiven Anteil an der Bonner Energiebilanz hat die Arbeit der Bonner Energie-Agentur (BEA). Diese berät seit 2012 neutral zu energiesparendem Bauen und Sanieren. Allein durch Informationsgespräche 2013 konnten in der Folge jährlich 100 000 Euro Energiekosten und 310 Tonnen klimaschädliches Kohlendioxid eingespart werden, ergab nun eine Auswertung der Prognos AG. Die beauftragten Gutachter kamen zu dem Schluss, „dass das Beratungsangebot eine Lücke in der bestehenden Beratungslandschaft füllt, zielgenau energetische Sanierer erreicht und langwirkende klimarelevante Entscheidungen herstellerunabhängig und aus Sicht der Kunden sehr zufriedenstellend beeinflusst“.\n\nUm die Ziele des Weltklimagipfels von Paris und des kommunalen Klimabündnisses zu erreichen, müssten die Anstrengungen in den kommenden Jahrzehnten deutlich verstärkt werden, appelliert Energie-Experte Müller. Insbesondere beim Verkehr und in den Privathaushalten müssten neue Hebel und Maßnahmen gesucht werden. „Hier haben auch die Kommunen entsprechende Steuerungsmöglichkeiten.“"]
["Text in Großbuchstaben",null,null,{"$f":"UPPER(D1)","v":"11.05.2016 BONN. DAS UMWELTAMT HAT DEM STADTRAT DIE JÜNGSTE CO2-BILANZ VORGELEGT. DEMNACH VERFEHLT DIE STADT BONN IHR SELBST GESTECKTES KLIMASCHUTZ-ZIEL DEUTLICH. DAS LIEGT VOR ALLEM AM VERKEHR.\n\nDIE STADT BONN VERFEHLT IHR SELBST GESTECKTES KLIMASCHUTZ-ZIEL DERZEIT DEUTLICH. DAS GEHT AUS DER JÜNGSTEN CO2-BILANZ HERVOR, DIE DAS UMWELTAMT DEM STADTRAT VORGELEGT HAT. IM BETRACHTUNGSZEITRAUM VON 1990 BIS 2012 SANK DER AUSSTOß AN TREIBHAUSGASEN PRO EINWOHNER DEMNACH VON 9,3 AUF 7,6 TONNEN JÄHRLICH.\n\nBESONDERS DIE PRIVATEN HAUSHALTE SOWIE INDUSTRIE UND GEWERBE HABEN ZU DIESER VERRINGERUNG BEIGETRAGEN. SIE VERURSACHEN ZUSAMMEN RUND EIN VIERTEL WENIGER TREIBHAUSGASE ALS ZU BEGINN DER 1990ER JAHRE. BEIM VERKEHR MIT IMMER MEHR DIESELFAHRZEUGEN HABEN DIE EMISSIONEN HINGEGEN UM 18 PROZENT ZUGENOMMEN.\n\nALS MITGLIED IM KLIMABÜNDNIS WILL BONN SEINEN TREIBHAUSGASAUSSTOß VON 1990 BIS 2030 UM DIE HÄLFTE VERRINGERN. WIE DIE UNTERSUCHUNG ZEIGT, IST DIE STADT VON DIESEM ZIEL DERZEIT WEIT ENTFERNT. BEI EINER GLEICHBLEIBENDEN MINDERUNGSRATE HÄTTE DER WERT DAZU 2012 BEREITS BEI DEUTLICH UNTER SIEBEN TONNEN JE EINWOHNER LIEGEN MÜSSEN. IN ABSOLUTEN ZAHLEN FÄLLT BONNS BEITRAG ZUM KLIMASCHUTZ SOGAR NOCH DEUTLICH GERINGER AUS, WEIL DIE GESAMTEMISSIONEN 2012 AUF RUND 17 000 ZUSÄTZLICHE EINWOHNER VERGLICHEN MIT 1990 VERTEILT WURDEN. REAL SIND SIE VON 2,8 MILLIONEN TONNEN 1990 AUF 2,4 MILLIONEN TONNEN 2012 GESUNKEN, ALSO UM 15 PROZENT.\n\nENTSPRECHEND VERHALTEN BEWERTET MICHAEL MÜLLER VON DER „ENERGIEAGENTUR“ NRW DIE BONNER ERGEBNISSE. DER EXPERTE FÜR KOMMUNALEN KLIMASCHUTZ SPRICHT VON EINEM „MODERATEN RÜCKGANG DER EMISSIONEN“. DIES SEI „DURCHAUS EIN ERFOLG FÜR DIE KOMMUNALE KLIMASCHUTZPOLITIK“. WIE ÜBERALL IM LAND STÜNDEN EINSPAREFFEKTEN DURCH EFFIZIENZSTEIGERUNG IM BEREICH DER INDUSTRIE UND LEICHTEN EINSPARUNGEN IN DEN PRIVATHAUSHALTEN FAST KONSTANTE EMISSIONEN BEI GEWERBE, HANDEL UND DIENSTLEISTUNGEN UND STEIGENDE WERTE BEIM VERKEHR GEGENÜBER.\n\nDIE CO2-BILANZ WURDE MIT DEM INTERNET-SYSTEM „ECOREGION“ ERSTELLT UND UM DIE JAHRE 2011 UND 2012 ERGÄNZT. ES DAUERE MEHRERE JAHRE, BIS DIE NOTWENDIGEN DATEN ZUR VERFÜGUNG STÜNDEN, ERKLÄRT DAS UMWELTAMT DIE VERZÖGERTE AUSWERTUNG. DIE DATEN BILDEN DIE TATSÄCHLICHEN ENERGIEVERBRÄUCHE UND KOHLENDIOXID-EMISSIONEN IM BONNER STADTGEBIET AB UND SIND NICHT UM WITTERUNGSEINFLÜSSE WIE KALTE WINTER KORRIGIERT. AUCH DIE TREIBHAUSGASE, DIE BEI DER HER- UND BEREITSTELLUNG VON ENERGIE ANFALLEN, FLIEßEN IN DIE GESAMTRECHNUNG EIN.\n\nPOSITIV FÄLLT AUF, DASS FOSSILE ENERGIETRÄGER IN DER STADT HEUTE EINE DEUTLICH GERINGERE ROLLE SPIELEN ALS ZUR DEUTSCHEN WIEDERVEREINIGUNG. DER UMSTIEG DER STADTWERKE VON BRAUNKOHLE AUF ERDGAS UND MÜLLDAMPF SOWIE DER EINSATZ VON KRAFT-WÄRME-KOPPLUNG HÄTTE DAZU GEFÜHRT, DASS DIE EMISSIONEN BEIM STROM UM 18 PROZENT GESENKT WERDEN KONNTEN, BILANZIERT DAS UMWELTAMT. UND DAS, OBGLEICH HEUTE MEHR STROM VERBRAUCHT WIRD ALS 1990. ZUGEKAUFTER STROM STAMMTE 2012 AUßERDEM ZU FAST 55 PROZENT AUS ERNEUERBAREN ENERGIEQUELLEN. BEI DER HEIZWÄRME, DIE DEN WEITAUS GRÖßEREN ANTEIL AM VERBRAUCH HAT, STECKT DIE ENERGIEWENDE NOCH IN DEN KINDERSCHUHEN. IMMERHIN SETZEN DIE BONNER NUR NOCH SELTEN AUF HEIZÖL UND KOHLE. DEREN ANTEIL SANK UM DIE HÄLFTE. VOR ALLEM DER AUSBAU DES FERNWÄRMENETZES IST DAFÜR VERANTWORTLICH. ABER AUCH ERDGAS IST AUF DEM VORMARSCH. SEIN ANTEIL STIEG SEIT 1990 UM FÜNF PROZENT. ERNEUERBARE ENERGIEQUELLEN, ETWA SOLARKOLLEKTOREN, HABEN BEI DER WÄRMEPRODUKTION DAGEGEN NUR EINEN VERSCHWINDEND GERINGEN ANTEIL.\n\nEINEN POSITIVEN ANTEIL AN DER BONNER ENERGIEBILANZ HAT DIE ARBEIT DER BONNER ENERGIE-AGENTUR (BEA). DIESE BERÄT SEIT 2012 NEUTRAL ZU ENERGIESPARENDEM BAUEN UND SANIEREN. ALLEIN DURCH INFORMATIONSGESPRÄCHE 2013 KONNTEN IN DER FOLGE JÄHRLICH 100 000 EURO ENERGIEKOSTEN UND 310 TONNEN KLIMASCHÄDLICHES KOHLENDIOXID EINGESPART WERDEN, ERGAB NUN EINE AUSWERTUNG DER PROGNOS AG. DIE BEAUFTRAGTEN GUTACHTER KAMEN ZU DEM SCHLUSS, „DASS DAS BERATUNGSANGEBOT EINE LÜCKE IN DER BESTEHENDEN BERATUNGSLANDSCHAFT FÜLLT, ZIELGENAU ENERGETISCHE SANIERER ERREICHT UND LANGWIRKENDE KLIMARELEVANTE ENTSCHEIDUNGEN HERSTELLERUNABHÄNGIG UND AUS SICHT DER KUNDEN SEHR ZUFRIEDENSTELLEND BEEINFLUSST“.\n\nUM DIE ZIELE DES WELTKLIMAGIPFELS VON PARIS UND DES KOMMUNALEN KLIMABÜNDNISSES ZU ERREICHEN, MÜSSTEN DIE ANSTRENGUNGEN IN DEN KOMMENDEN JAHRZEHNTEN DEUTLICH VERSTÄRKT WERDEN, APPELLIERT ENERGIE-EXPERTE MÜLLER. INSBESONDERE BEIM VERKEHR UND IN DEN PRIVATHAUSHALTEN MÜSSTEN NEUE HEBEL UND MAßNAHMEN GESUCHT WERDEN. „HIER HABEN AUCH DIE KOMMUNEN ENTSPRECHENDE STEUERUNGSMÖGLICHKEITEN.“"}]
["Anzahl der\nBuchstaben"]
["A",202,{"$f":"B4/$B$30","v":5.5191256830601096E-2}]
["B",84,{"$f":"B5/$B$30","v":2.2950819672131147E-2}]
["C",71,1.9398907103825136E-2]
["D",186,5.0819672131147541E-2]
["E",640,0.17486338797814208]
["F",45,1.2295081967213115E-2]
["G",122,3.3333333333333333E-2]
["H",131,3.5792349726775953E-2]
["I",284,7.7595628415300544E-2]
["J",9,2.4590163934426232E-3]
["K",54,1.4754098360655738E-2]
["L",155,4.2349726775956283E-2]
["M",115,3.1420765027322405E-2]
["N",375,0.10245901639344263]
["O",109,2.9781420765027322E-2]
["P",32,8.7431693989071038E-3]
["Q",2,5.4644808743169399E-4]
["R",273,7.4590163934426232E-2]
["S",216,5.9016393442622953E-2]
["T",241,6.5846994535519121E-2]
["U",164,4.480874316939891E-2]
["V",45,1.2295081967213115E-2]
["W",47,1.2841530054644808E-2]
["X",4,1.092896174863388E-3]
["Y",1,2.7322404371584699E-4]
["Z",53,1.448087431693989E-2]
["Summe",{"$f":"SUM(B4:B29)","v":3660},1]

{"sheet":"Beispieltexte","index":1,"n_rows":7,"n_cols":2,"rows_kept":7,"cut":false,"hidden":false,"merged":[]}
["11.05.2016 Bonn. Das Umweltamt hat dem Stadtrat die jüngste CO2-Bilanz vorgelegt. Demnach verfehlt die Stadt Bonn ihr selbst gestecktes Klimaschutz-Ziel deutlich. Das liegt vor allem am Verkehr.\n\nDie Stadt Bonn verfehlt ihr selbst gestecktes Klimaschutz-Ziel derzeit deutlich. Das geht aus der jüngsten CO2-Bilanz hervor, die das Umweltamt dem Stadtrat vorgelegt hat. Im Betrachtungszeitraum von 1990 bis 2012 sank der Ausstoß an Treibhausgasen pro Einwohner demnach von 9,3 auf 7,6 Tonnen jährlich.\n\nBesonders die privaten Haushalte sowie Industrie und Gewerbe haben zu dieser Verringerung beigetragen. Sie verursachen zusammen rund ein Viertel weniger Treibhausgase als zu Beginn der 1990er Jahre. Beim Verkehr mit immer mehr Dieselfahrzeugen haben die Emissionen hingegen um 18 Prozent zugenommen.\n\nAls Mitglied im Klimabündnis will Bonn seinen Treibhausgasausstoß von 1990 bis 2030 um die Hälfte verringern. Wie die Untersuchung zeigt, ist die Stadt von diesem Ziel derzeit weit entfernt. Bei einer gleichbleibenden Minderungsrate hätte der Wert dazu 2012 bereits bei deutlich unter sieben Tonnen je Einwohner liegen müssen. In absoluten Zahlen fällt Bonns Beitrag zum Klimaschutz sogar noch deutlich geringer aus, weil die Gesamtemissionen 2012 auf rund 17 000 zusätzliche Einwohner verglichen mit 1990 verteilt wurden. Real sind sie von 2,8 Millionen Tonnen 1990 auf 2,4 Millionen Tonnen 2012 gesunken, also um 15 Prozent.\n\nEntsprechend verhalten bewertet Michael Müller von der „EnergieAgentur“ NRW die Bonner Ergebnisse. Der Experte für kommunalen Klimaschutz spricht von einem „moderaten Rückgang der Emissionen“. Dies sei „durchaus ein Erfolg für die kommunale Klimaschutzpolitik“. Wie überall im Land stünden Einspareffekten durch Effizienzsteigerung im Bereich der Industrie und leichten Einsparungen in den Privathaushalten fast konstante Emissionen bei Gewerbe, Handel und Dienstleistungen und steigende Werte beim Verkehr gegenüber.\n\nDie CO2-Bilanz wurde mit dem Internet-System „ecoRegion“ erstellt und um die Jahre 2011 und 2012 ergänzt. Es dauere mehrere Jahre, bis die notwendigen Daten zur Verfügung stünden, erklärt das Umweltamt die verzögerte Auswertung. Die Daten bilden die tatsächlichen Energieverbräuche und Kohlendioxid-Emissionen im Bonner Stadtgebiet ab und sind nicht um Witterungseinflüsse wie kalte Winter korrigiert. Auch die Treibhausgase, die bei der Her- und Bereitstellung von Energie anfallen, fließen in die Gesamtrechnung ein.\n\nPositiv fällt auf, dass fossile Energieträger in der Stadt heute eine deutlich geringere Rolle spielen als zur deutschen Wiedervereinigung. Der Umstieg der Stadtwerke von Braunkohle auf Erdgas und Mülldampf sowie der Einsatz von Kraft-Wärme-Kopplung hätte dazu geführt, dass die Emissionen beim Strom um 18 Prozent gesenkt werden konnten, bilanziert das Umweltamt. Und das, obgleich heute mehr Strom verbraucht wird als 1990. Zugekaufter Strom stammte 2012 außerdem zu fast 55 Prozent aus erneuerbaren Energiequellen. Bei der Heizwärme, die den weitaus größeren Anteil am Verbrauch hat, steckt die Energiewende noch in den Kinderschuhen. Immerhin setzen die Bonner nur noch selten auf Heizöl und Kohle. Deren Anteil sank um die Hälfte. Vor allem der Ausbau des Fernwärmenetzes ist dafür verantwortlich. Aber auch Erdgas ist auf dem Vormarsch. Sein Anteil stieg seit 1990 um fünf Prozent. Erneuerbare Energiequellen, etwa Solarkollektoren, haben bei der Wärmeproduktion dagegen nur einen verschwindend geringen Anteil.\n\nEinen positiven Anteil an der Bonner Energiebilanz hat die Arbeit der Bonner Energie-Agentur (BEA). Diese berät seit 2012 neutral zu energiesparendem Bauen und Sanieren. Allein durch Informationsgespräche 2013 konnten in der Folge jährlich 100 000 Euro Energiekosten und 310 Tonnen klimaschädliches Kohlendioxid eingespart werden, ergab nun eine Auswertung der Prognos AG. Die beauftragten Gutachter kamen zu dem Schluss, „dass das Beratungsangebot eine Lücke in der bestehenden Beratungslandschaft füllt, zielgenau energetische Sanierer erreicht und langwirkende klimarelevante Entscheidungen herstellerunabhängig und aus Sicht der Kunden sehr zufriedenstellend beeinflusst“.\n\nUm die Ziele des Weltklimagipfels von Paris und des kommunalen Klimabündnisses zu erreichen, müssten die Anstrengungen in den kommenden Jahrzehnten deutlich verstärkt werden, appelliert Energie-Experte Müller. Insbesondere beim Verkehr und in den Privathaushalten müssten neue Hebel und Maßnahmen gesucht werden. „Hier haben auch die Kommunen entsprechende Steuerungsmöglichkeiten.“","Quelle General-Anzeiger Bonn, 11.5.2016"]
[]
["Queen of diplomacy: Monarch caught on camera at palace garden party branding Chinese 'very rude'\n\nBy JOSH PETTITT\n\n09:00, 11 May 2016 \n\nTHE Queen was caught out by her own cameraman dropping an undiplomatic clanger about “rude” Chinese officials during their politically sensitive visit last year. \n\nThe monarch made the rare indiscreet comments at a posh garden party in the grounds of Buckingham Palace to celebrate her 90th birthday when she was introduced to a Met Police officer, who had been in charge of security during President Xi’s visit. \n\nThe Queen began her conversation with Commander Lucy D'Orsi by quipping \"oh, bad luck\" when a palace official described how the officer had been “seriously undermined by the Chinese”. \n\n","Quelle: The Sun, 11.5.2016"]
[]
["Franz jagt im komplett verwahrlosten Taxi quer durch Bayern."]
[]
["The quick brown fox jumps over the lazy dog."]